bitfinex/quotes_BTCUSD_20250601
["timestamp","ask_amount","ask_price","bid_price","bid_amount"]
[1748772754600,0.56637823,103990.0,103980.0,0.01376406]
[1748772755518,0.56637823,103990.0,103980.0,0.01576406]
[1748772756155,0.56637823,103990.0,103980.0,0.02477509]
[1748772756323,0.56637823,103990.0,103980.0,0.01576406]
[1748772756526,0.56637823,103990.0,103980.0,0.02477509]
[1748772757124,0.56637823,103990.0,103980.0,0.01576406]
[1748772757949,0.56637823,103990.0,103980.0,0.02477509]
[1748772758575,0.56637823,103990.0,103980.0,0.01576406]
[1748772759146,0.56637823,103990.0,103980.0,0.02475816]
[1748772759345,0.56637823,103990.0,103980.0,0.01576406]
[1748772759633,0.56637823,103990.0,103980.0,0.02475816]
[1748772759867,0.56637823,103990.0,103980.0,0.01576406]
[1748772760800,0.56637823,103990.0,103980.0,0.02475816]
[1748772761026,0.56637823,103990.0,103980.0,0.01576406]
[1748772762128,0.26513823,103990.0,103980.0,0.01576406]
[1748772762339,0.56633823,103990.0,103980.0,0.01576406]
[1748772762541,0.56633823,103990.0,103980.0,0.02475816]
[1748772763159,0.56633823,103990.0,103980.0,0.03375226]
[1748772763368,0.56633823,103990.0,103980.0,0.02475816]
[1748772763573,0.56633823,103990.0,103980.0,0.03375226]
[1748772763779,0.56633823,103990.0,103980.0,0.02475816]
[1748772763991,0.56633823,103990.0,103980.0,0.03375226]
[1748772764410,0.56633823,103990.0,103980.0,0.0337504]
[1748772764825,0.56633823,103990.0,103980.0,0.02475816]
[1748772765249,0.56633823,103990.0,103980.0,0.0337504]
[1748772765432,0.56633823,103990.0,103980.0,0.02475816]
[1748772765575,0.56633823,103990.0,103980.0,0.03375026]
[1748772765775,0.56633823,103990.0,103980.0,0.02475816]
[1748772766029,0.56633823,103990.0,103980.0,0.03375025]
[1748772766848,0.56633823,103990.0,103980.0,0.02475816]
[1748772767054,0.56633823,103990.0,103980.0,0.03375025]
[1748772767925,0.63596012,103990.0,103980.0,0.03375025]
[1748772768060,0.73012012,103990.0,103980.0,0.03375085]
[1748772768263,0.73012012,103990.0,103980.0,0.02475816]
[1748772770841,0.73994241,103990.0,103980.0,0.03375101]
[1748772770991,0.73994241,103990.0,103980.0,0.02475816]
[1748772771195,0.67032052,103990.0,103980.0,0.02475816]
[1748772772215,0.66049823,103990.0,103980.0,0.02475816]
[1748772773311,0.67008387,103990.0,103980.0,0.03377091]
[1748772773561,0.67008387,103990.0,103980.0,0.02475816]
[1748772775527,0.67008387,103990.0,103980.0,0.03377116]
[1748772776079,0.67008387,103990.0,103980.0,0.02275816]
[1748772776281,0.67008387,103990.0,103980.0,0.02976657]
[1748772776736,0.67008387,103990.0,103980.0,0.02175816]
[1748772776931,0.67008387,103990.0,103980.0,0.03076657]
[1748772777423,0.75921028,103990.0,103980.0,0.03076657]
[1748772777768,0.69895787,103990.0,103980.0,0.03076657]
[1748772778141,0.69895787,103990.0,103980.0,0.03076546]
[1748772778586,0.69895787,103990.0,103980.0,0.02175816]
[1748772778787,0.69895787,103990.0,103980.0,0.03076546]
[1748772779395,0.69895787,103990.0,103980.0,0.03076536]
[1748772780191,0.78808448,103990.0,103980.0,0.03076535]
[1748772780406,0.78808448,103990.0,103980.0,0.02175816]
[1748772781189,0.78808448,103990.0,103980.0,0.03076535]
[1748772782103,0.78808448,103990.0,103980.0,0.03076552]
[1748772782316,0.69895787,103990.0,103980.0,0.03076552]
[1748772782530,0.69895787,103990.0,103980.0,0.02175816]
[1748772783461,0.69895787,103990.0,103980.0,0.03076552]
[1748772783581,0.69895787,103990.0,103980.0,0.03076575]
[1748772784360,0.69895787,103990.0,103980.0,0.03076572]
[1748772784565,0.69895787,103990.0,103980.0,0.02175816]
[1748772784997,0.69895787,103990.0,103980.0,0.03076571]
[1748772785551,0.69895787,103990.0,103980.0,0.03076601]
[1748772785970,0.69895787,103990.0,103980.0,0.02175816]
[1748772786214,0.69895787,103990.0,103980.0,0.03076601]
[1748772786414,0.69895787,103990.0,103980.0,0.02175816]
[1748772788519,0.69895787,103990.0,103980.0,0.0307663]
[1748772788719,0.67008387,103990.0,103980.0,0.0307663]
[1748772788921,0.67008387,103990.0,103980.0,0.03076627]
[1748772789137,0.67008387,103990.0,103980.0,0.02175816]
[1748772789625,0.67008387,103990.0,103980.0,0.03076629]
[1748772789851,0.67008387,103990.0,103980.0,0.02175816]
[1748772790069,0.76259509,103990.0,103980.0,0.02175816]
[1748772790287,0.76259509,103990.0,103980.0,0.0307663]
[1748772790487,0.76259509,103990.0,103980.0,0.02175816]
[1748772791101,0.76259509,103990.0,103980.0,0.0307663]
[1748772791385,0.67008387,103990.0,103980.0,0.02175816]
[1748772791590,0.67008387,103990.0,103980.0,0.03076629]
[1748772791722,0.67008387,103990.0,103980.0,0.02175816]
[1748772791936,0.67008387,103990.0,103980.0,0.0307663]
[1748772792154,0.67008387,103990.0,103980.0,0.02175816]
[1748772792531,0.67008387,103990.0,103980.0,0.03076629]
[1748772792735,0.67008387,103990.0,103980.0,0.02175816]
[1748772793393,0.35929823,103990.0,103980.0,0.02175816]
[1748772793602,0.64459823,103990.0,103980.0,0.02175816]
[1748772796586,0.64459823,103990.0,103980.0,0.03076695]
[1748772796743,0.64459823,103990.0,103980.0,0.02175816]
[1748772796947,0.74701774,103990.0,103980.0,0.02175816]
[1748772797131,0.76291774,103990.0,103980.0,0.02175816]
[1748772797535,0.76291774,103990.0,103980.0,0.03077201]
[1748772798160,0.67040652,103990.0,103980.0,0.03077201]
[1748772798358,0.65450652,103990.0,103980.0,0.02175816]
[1748772798827,0.65450652,103990.0,103980.0,0.03077195]
[1748772799585,0.64459823,103990.0,103980.0,0.03077195]
[1748772799785,0.64459823,103990.0,103980.0,0.03077153]
[1748772800037,0.64459823,103990.0,103980.0,0.02175816]
[1748772800245,0.64459823,103990.0,103980.0,0.03077152]
[1748772800450,0.66049823,103990.0,103980.0,0.03077153]
[1748772800653,0.66049823,103990.0,103980.0,0.03077154]
[1748772801453,0.67042305,103990.0,103980.0,0.03077112]
[1748772801665,0.67042305,103990.0,103980.0,0.0307711]
[1748772801877,0.67042305,103990.0,103980.0,0.02175816]
[1748772803146,0.76293427,103990.0,103980.0,0.02175816]
[1748772803750,0.76293427,103990.0,103980.0,0.03077125]
[1748772804081,0.76293427,103990.0,103980.0,0.03077124]
[1748772804296,0.76293427,103990.0,103980.0,0.02175816]
[1748772805257,0.76293427,103990.0,103980.0,0.0307712]
[1748772805423,0.76293427,103990.0,103980.0,0.02175816]
[1748772805609,0.67042305,103990.0,103980.0,0.02175816]
[1748772805830,0.65452305,103990.0,103980.0,0.02175816]
[1748772806257,0.65452305,103990.0,103980.0,0.03077107]
[1748772806463,0.65452305,103990.0,103980.0,0.02175816]
[1748772806672,0.65452305,103990.0,103980.0,0.03077109]
[1748772806879,0.65452305,103990.0,103980.0,0.02175816]
[1748772807089,0.62819823,103990.0,103980.0,0.02175816]
[1748772807942,0.62811823,103990.0,103980.0,0.03077103]
[1748772808151,0.63784075,103990.0,103980.0,0.03077102]
[1748772808357,0.62811823,103990.0,103980.0,0.03077102]
[1748772808759,0.62811823,103990.0,103980.0,0.03077107]
[1748772808994,0.62811823,103990.0,103980.0,0.0307711]
[1748772809211,0.62811823,103990.0,103980.0,0.02175816]
[1748772809411,0.62811823,103990.0,103980.0,0.0307711]
[1748772810038,0.62811823,103990.0,103980.0,0.03077109]
[1748772810276,0.62811823,103990.0,103980.0,0.02175816]
[1748772810477,0.62811823,103990.0,103980.0,0.0307711]
[1748772810685,0.62811823,103990.0,103980.0,0.02175816]
[1748772811294,0.62811823,103990.0,103980.0,0.0307711]
[1748772811529,0.64371823,103990.0,103980.0,0.02175816]
[1748772811733,0.65364393,103990.0,103980.0,0.02175816]
[1748772811958,0.65364393,103990.0,103980.0,0.03077124]
[1748772812463,0.65364393,103990.0,103980.0,0.02175816]
[1748772813507,0.63804393,103990.0,103980.0,0.02175816]
[1748772814138,0.62811823,103990.0,103980.0,0.02175816]
[1748772815743,0.62811823,103990.0,103980.0,0.03077208]
[1748772816100,0.63800715,103990.0,103980.0,0.03077208]
[1748772816307,0.63800715,103990.0,103980.0,0.02175816]
[1748772816568,0.63800715,103990.0,103980.0,0.03077208]
[1748772816962,0.62811823,103990.0,103980.0,0.03077207]
[1748772817168,0.62811823,103990.0,103980.0,0.03077216]
[1748772818012,0.62811823,103990.0,103980.0,0.04717211]
[1748772818250,0.62811823,103990.0,103980.0,0.04717212]
[1748772818524,0.62811823,103990.0,103980.0,0.03077212]
[1748772818749,0.62811823,103990.0,103980.0,0.02175816]
[1748772819155,0.62811823,103990.0,103980.0,0.03077212]
[1748772820197,0.23303823,103990.0,103980.0,0.03815816]
[1748772820412,0.62791823,103990.0,103980.0,0.06257203]
[1748772820630,0.62791823,103990.0,103980.0,0.05355816]
[1748772821272,0.32697838,103990.0,103980.0,0.06809901]
[1748772821479,0.62791823,103990.0,103980.0,0.06809901]
[1748772822542,0.62791823,103990.0,103980.0,0.07711211]
[1748772822754,0.62791823,103990.0,103980.0,0.07711208]
[1748772822937,0.62791823,103990.0,103980.0,0.06809901]
[1748772824691,0.62791823,103990.0,103980.0,0.07711218]
[1748772825088,0.62791823,103990.0,103980.0,0.06809901]
[1748772825738,0.62791823,103990.0,103980.0,0.07711217]
[1748772825946,0.62791823,103990.0,103980.0,0.06809901]
[1748772826155,0.62791823,103990.0,103980.0,0.07711223]
[1748772826369,0.62791823,103990.0,103980.0,0.06809901]
[1748772827433,0.62791823,103990.0,103980.0,0.07711232]
[1748772827628,0.62791823,103990.0,103980.0,0.06809901]
[1748772828088,0.67936188,103990.0,103980.0,0.02175816]
[1748772828302,0.62791823,103990.0,103980.0,0.03077186]
[1748772828515,0.62791823,103990.0,103980.0,0.04737188]
[1748772828727,0.62791823,103990.0,103980.0,0.03835816]
[1748772829139,0.62791823,103990.0,103980.0,0.02175816]
[1748772829585,0.62791823,103990.0,103980.0,0.03077195]
[1748772829794,0.62791823,103990.0,103980.0,0.02175816]
[1748772830415,0.73692945,103990.0,103980.0,0.03077195]
[1748772830667,0.72042945,103990.0,103980.0,0.03077195]
[1748772831347,0.72042945,103990.0,103980.0,0.03978583]
[1748772831555,0.72042945,103990.0,103980.0,0.03077195]
[1748772831781,0.72042945,103990.0,103980.0,0.03978576]
[1748772831984,0.72042945,103990.0,103980.0,0.03978575]
[1748772832524,0.62791823,103990.0,103980.0,0.03978575]
[1748772832722,0.62791823,103990.0,103980.0,0.03977825]
[1748772832927,0.62791823,103990.0,103980.0,0.03977824]
[1748772833606,0.62791823,103990.0,103980.0,0.03977745]
[1748772833936,0.62791823,103990.0,103980.0,0.03077195]
[1748772834143,0.62791823,103990.0,103980.0,0.03977745]
[1748772834656,0.62791823,103990.0,103980.0,0.03977748]
[1748772834859,0.62791823,103990.0,103980.0,0.03977746]
[1748772835064,0.62791823,103990.0,103980.0,0.04878298]
[1748772835290,0.62791823,103990.0,103980.0,0.03977746]
[1748772835742,0.62791823,103990.0,103980.0,0.04878298]
[1748772836152,0.62791823,103990.0,103980.0,0.03977746]
[1748772836356,0.62791823,103990.0,103980.0,0.04878299]
[1748772836566,0.62791823,103990.0,103980.0,0.04878342]
[1748772836795,0.62791823,103990.0,103980.0,0.03977746]
[1748772836977,0.62791823,103990.0,103980.0,0.04878344]
[1748772837396,0.62791823,103990.0,103980.0,0.03977746]
[1748772837596,0.62791823,103990.0,103980.0,0.04878343]
[1748772838031,0.62791823,103990.0,103980.0,0.03977746]
[1748772838453,0.62791823,103990.0,103980.0,0.04878343]
[1748772838908,0.62791823,103990.0,103980.0,0.04878372]
[1748772839481,0.62791823,103990.0,103980.0,0.03977746]
[1748772840549,0.62791823,103990.0,103980.0,0.04878372]
[1748772841176,0.62791823,103990.0,103980.0,0.03977746]
[1748772842121,0.62791823,103990.0,103980.0,0.04878373]
[1748772842320,0.62791823,103990.0,103980.0,0.0487843]
[1748772842866,0.62791823,103990.0,103980.0,0.03977746]
[1748772843080,0.62791823,103990.0,103980.0,0.0487843]
[1748772843474,0.62791823,103990.0,103980.0,0.03977746]
[1748772843790,0.62791823,103990.0,103980.0,0.05537746]
[1748772843993,0.32711823,103990.0,103980.0,0.0804843]
[1748772844371,0.62771823,103990.0,103980.0,0.07147746]
[1748772845347,0.32711823,103990.0,103980.0,0.07147746]
[1748772845728,0.62771823,103990.0,103980.0,0.08048421]
[1748772845904,0.62771823,103990.0,103980.0,0.08048419]
[1748772846261,0.62771823,103990.0,103980.0,0.07147746]
[1748772847276,0.62771823,103990.0,103980.0,0.08048554]
[1748772847524,0.62771823,103990.0,103980.0,0.07147746]
[1748772849656,0.62771823,103990.0,103980.0,0.08049055]
[1748772850073,0.23303823,103990.0,103980.0,0.08049055]
[1748772850283,0.62751823,103990.0,103980.0,0.09503078]
[1748772850627,0.23303823,103990.0,103980.0,0.09503063]
[1748772850837,0.62751823,103990.0,103980.0,0.08601831]
[1748772851244,0.62751823,103990.0,103980.0,0.09503041]
[1748772851451,0.62751823,103990.0,103980.0,0.08601831]
[1748772852465,0.61248935,103990.0,103980.0,0.08601831]
[1748772852908,0.61167381,103990.0,103980.0,0.10404239]
[1748772853316,0.61167381,103990.0,103980.0,0.09503035]
[1748772853555,0.31117396,103990.0,103980.0,0.38322933]
[1748772853717,0.12846353,103990.0,103980.0,0.41207981]
[1748772853923,0.33040601,103990.0,103980.0,0.40246314]
[1748772854367,0.33040601,103990.0,103980.0,0.42151103]
[1748772858079,0.32079035,103990.0,103980.0,0.42151103]
[1748772858979,0.32079035,103990.0,103980.0,0.41189426]
[1748772859158,0.31117442,103990.0,103980.0,0.41189426]
[1748772859366,0.31117442,103990.0,103980.0,0.20993254]
[1748772859545,0.29194191,103990.0,103980.0,0.20993254]
[1748772861250,0.29194191,103990.0,103980.0,0.20741254]
[1748772871512,0.59230191,103990.0,103980.0,0.20741254]
[1748772872382,0.59230191,103990.0,103980.0,0.54741254]
[1748772874090,0.59230191,103990.0,103980.0,0.53840424]
[1748772881549,0.59230191,103990.0,103980.0,0.54033949]
[1748772881895,0.29194191,103990.0,103980.0,0.54033949]
[1748772882103,0.59222191,103990.0,103980.0,0.54033949]
[1748772884165,0.59222191,103990.0,103980.0,0.53134539]
[1748772887886,0.29194191,103990.0,103980.0,0.53134539]
[1748772888087,0.59218191,103990.0,103980.0,0.53134539]
[1748772893532,0.59214191,103990.0,103980.0,0.53134539]
[1748772895820,0.59214191,103990.0,103980.0,0.7333073]
[1748772896479,0.59214191,103990.0,103980.0,0.74292444]
[1748772898548,0.59214191,103990.0,103980.0,0.75254148]
[1748772902524,0.59214191,103990.0,103980.0,0.49964539]
[1748772902764,0.59214191,103990.0,103980.0,0.7016073]
[1748772903988,0.59214191,103990.0,103980.0,0.49964539]
[1748772904484,0.59214191,103990.0,103980.0,0.50926262]
[1748772904947,0.59214191,103990.0,103980.0,0.51928963]
[1748772905481,0.59202191,103990.0,103980.0,0.51928963]
[1748772905734,0.60163821,103990.0,103980.0,0.72125135]
[1748772906007,0.60163821,103990.0,103980.0,0.7462683]
[1748772906263,0.60163821,103990.0,103980.0,0.7618683]
[1748772909771,0.60163821,103990.0,103980.0,0.75225135]
[1748772909987,0.60163821,103990.0,103980.0,0.71163431]
[1748772910213,0.60163821,103990.0,103980.0,0.72125145]
[1748772910421,0.60163821,103990.0,103980.0,0.76216849]
[1748772912631,0.60163821,103990.0,103980.0,0.74716849]
[1748772913398,0.60163821,103990.0,103980.0,0.73755145]
[1748772913608,0.60163821,103990.0,103980.0,0.72125145]
[1748772914370,0.60163821,103990.0,103980.0,0.71163431]
[1748772914614,0.59202191,103990.0,103980.0,0.51928963]
[1748772914851,0.59202191,103990.0,103980.0,0.15062451]
[1748772915082,0.59202191,103990.0,103980.0,0.04022936]
[1748772915083,0.53028176,103990.0,103980.0,0.04022936]
[1748772915320,0.56992778,103990.0,103980.0,0.04924123]
[1748772915543,0.56992778,103990.0,103980.0,0.04022936]
[1748772915753,0.59880078,103990.0,103980.0,0.04022936]
[1748772916379,0.59880078,103990.0,103980.0,0.04707148]
[1748772916981,0.59880078,103990.0,103980.0,0.04705102]
[1748772917390,0.59880078,103990.0,103980.0,0.02803134]
[1748772917597,0.59880078,103990.0,103980.0,0.037024]
[1748772917794,0.59880078,103990.0,103980.0,0.02803134]
[1748772918255,0.55915476,103990.0,103980.0,0.02803134]
[1748772918680,0.55915476,103990.0,103980.0,0.03702403]
[1748772918879,0.55915476,103990.0,103980.0,0.02803134]
[1748772919309,0.55915476,103990.0,103980.0,0.03702404]
[1748772919717,0.55915476,103990.0,103980.0,0.03702405]
[1748772919904,0.60946548,103990.0,103980.0,0.02803134]
[1748772920790,0.60946548,103990.0,103980.0,0.03701814]
[1748772921011,0.60946548,103990.0,103980.0,0.02803134]
[1748772921507,0.60946548,103990.0,103980.0,0.03701815]
[1748772921695,0.60946548,103990.0,103980.0,0.02803134]
[1748772922348,0.55915476,103990.0,103980.0,0.02803134]
[1748772925838,0.55915476,103990.0,103980.0,0.03701673]
[1748772926068,0.55915476,103990.0,103980.0,0.02803134]
[1748772926486,0.55915476,103990.0,103980.0,0.03701672]
[1748772926695,0.55915476,103990.0,103980.0,0.02803134]
[1748772927295,0.64366506,103990.0,103980.0,0.03701494]
[1748772927495,0.64114506,103990.0,103980.0,0.03701494]
[1748772927694,0.64114506,103990.0,103980.0,0.02803134]
[1748772929107,0.64114506,103990.0,103980.0,0.03701166]
[1748772929266,0.64114506,103990.0,103980.0,0.02803134]
[1748772929481,0.55663476,103990.0,103980.0,0.03701166]
[1748772930092,0.55663476,103990.0,103980.0,0.02803134]
[1748772930293,0.55663476,103990.0,103980.0,0.03701042]
[1748772930954,0.55647476,103990.0,103980.0,0.03701042]
[1748772931304,0.55647476,103990.0,103980.0,0.03701114]
[1748772931599,0.55647476,103990.0,103980.0,0.02803134]
[1748772931869,0.55647476,103990.0,103980.0,0.03701114]
[1748772932425,0.55647476,103990.0,103980.0,0.03701274]
[1748772933328,0.60595392,103990.0,103980.0,0.02803134]
[1748772933560,0.60595392,103990.0,103980.0,0.03701274]
[1748772933798,0.60595392,103990.0,103980.0,0.03701436]
[1748772934683,0.69943392,103990.0,103980.0,0.03701436]
[1748772935554,0.69943392,103990.0,103980.0,0.04600752]
[1748772935721,0.69943392,103990.0,103980.0,0.03701943]
[1748772936570,0.69943392,103990.0,103980.0,0.03702132]
[1748772936840,0.69943392,103990.0,103980.0,0.02803134]
[1748772937314,0.69943392,103990.0,103980.0,0.03704376]
[1748772938203,0.69943392,103990.0,103980.0,0.03704395]
[1748772938335,0.69943392,103990.0,103980.0,0.02803134]
[1748772938519,0.69943392,103990.0,103980.0,0.03704397]
[1748772938726,0.69943392,103990.0,103980.0,0.03704405]
[1748772938950,0.69943392,103990.0,103980.0,0.02803134]
[1748772939162,0.79528822,103990.0,103980.0,0.02803134]
[1748772939375,0.79528822,103990.0,103980.0,0.03704418]
[1748772939613,0.79528822,103990.0,103980.0,0.02803134]
[1748772939817,0.79528822,103990.0,103980.0,0.03110853]
[1748772940039,0.79528822,103990.0,103980.0,0.04012155]
[1748772940390,0.79628822,103990.0,103980.0,0.03912155]
[1748772940560,0.79728822,103990.0,103980.0,0.03912154]
[1748772940770,0.79728822,103990.0,103980.0,0.03911933]
[1748772941176,0.79728822,103990.0,103980.0,0.03010853]
[1748772942759,0.74780906,103990.0,103980.0,0.03010853]
[1748772943205,0.74780906,103990.0,103980.0,0.03911926]
[1748772943436,0.74780906,103990.0,103980.0,0.03010853]
[1748772943640,0.74780906,103990.0,103980.0,0.0391193]
[1748772943770,0.74780906,103990.0,103980.0,0.03911929]
[1748772943973,0.84032028,103990.0,103980.0,0.03911929]
[1748772944210,0.84032028,103990.0,103980.0,0.03010853]
[1748772944670,0.84032028,103990.0,103980.0,0.03911849]
[1748772944884,0.84032028,103990.0,103980.0,0.03010853]
[1748772945584,0.84032028,103990.0,103980.0,0.0391185]
[1748772945813,0.84032028,103990.0,103980.0,0.03010853]
[1748772946853,0.84032028,103990.0,103980.0,0.03911884]
[1748772947053,0.84032028,103990.0,103980.0,0.03010853]
[1748772947259,0.84032028,103990.0,103980.0,0.03911884]
[1748772947467,0.84032028,103990.0,103980.0,0.03010853]
[1748772947674,0.84032028,103990.0,103980.0,0.03911884]
[1748772947928,0.84032028,103990.0,103980.0,0.03010853]
[1748772949418,0.84032028,103990.0,103980.0,0.03911883]
[1748772949581,0.84032028,103990.0,103980.0,0.03010853]
[1748772951257,0.84032028,103990.0,103980.0,0.03911907]
[1748772951489,0.84032028,103990.0,103980.0,0.03010853]
[1748772952068,0.74780906,103990.0,103980.0,0.03010853]
[1748772952271,0.74780906,103990.0,103980.0,0.03911907]
[1748772952478,0.74780906,103990.0,103980.0,0.03911906]
[1748772954229,0.74780906,103990.0,103980.0,0.02109474]
[1748772954404,0.74780906,103990.0,103980.0,0.03010493]
[1748772955088,0.35440906,103990.0,103980.0,0.03010482]
[1748772955291,0.61947476,103990.0,103980.0,0.0301047]
[1748772955734,0.61947476,103990.0,103980.0,0.0625047]
[1748772956642,0.61947476,103990.0,103980.0,0.06250368]
[1748772957255,0.59056176,103990.0,103980.0,0.07704453]
[1748772957682,0.59056176,103990.0,103980.0,0.07704383]
[1748772958514,0.59056176,103990.0,103980.0,0.07703972]
[1748772958718,0.59056176,103990.0,103980.0,0.06803559]
[1748772959322,0.59056176,103990.0,103980.0,0.07703976]
[1748772959584,0.59056176,103990.0,103980.0,0.07703778]
[1748772960751,0.59056176,103990.0,103980.0,0.06803559]
[1748772962090,0.59056176,103990.0,103980.0,0.07703728]
[1748772962274,0.59056176,103990.0,103980.0,0.06803559]
[1748772962691,0.26127455,103990.0,103980.0,0.02109474]
[1748772962833,0.78266885,103990.0,103980.0,0.02109474]
[1748772963041,0.81154385,103990.0,103980.0,0.03009674]
[1748772963651,0.81154385,103990.0,103980.0,0.03909965]
[1748772963942,0.81154385,103990.0,103980.0,0.03009674]
[1748772964363,0.81154385,103990.0,103980.0,0.02109123]
[1748772965536,0.74775106,103990.0,103980.0,0.02109123]
[1748772968295,0.74775106,103990.0,103980.0,0.03008982]
[1748772968545,0.74775106,103990.0,103980.0,0.02109123]
[1748772969623,0.74775106,103990.0,103980.0,0.03008987]
[1748772969836,0.74775106,103990.0,103980.0,0.03008991]
[1748772970046,0.74775106,103990.0,103980.0,0.02109123]
[1748772970927,0.74771106,103990.0,103980.0,0.02109123]
[1748772971123,0.74771106,103990.0,103980.0,0.03008965]
[1748772971336,0.74771106,103990.0,103980.0,0.02109123]
[1748772972611,0.74771106,103990.0,103980.0,0.03009061]
[1748772972812,0.74771106,103990.0,103980.0,0.03009021]
[1748772973040,0.74771106,103990.0,103980.0,0.03008955]
[1748772973254,0.74771106,103990.0,103980.0,0.03008823]
[1748772973476,0.74771106,103990.0,103980.0,0.02109123]
[1748772974132,0.74771106,103990.0,103980.0,0.03008768]
[1748772974331,1.24301106,103990.0,103980.0,0.02107557]
[1748772975209,1.24301106,103990.0,103980.0,0.02107192]
[1748772975408,1.24301106,103990.0,103980.0,0.01207919]
[1748772975786,1.24301106,103990.0,103980.0,0.02106853]
[1748772975969,1.24301106,103990.0,103980.0,0.01207919]
[1748772976791,1.25627026,103990.0,103980.0,0.01207919]
[1748772976988,1.25627026,103990.0,103980.0,0.02106813]
[1748772977194,1.25627026,103990.0,103980.0,0.01207919]
[1748772978222,1.25627026,103990.0,103980.0,0.02106891]
[1748772978969,1.25627026,103990.0,103980.0,0.02106749]
[1748772979324,1.25627026,103990.0,103980.0,0.02106748]
[1748772979738,1.25627026,103990.0,103980.0,0.01207919]
[1748772979937,1.25627026,103990.0,103980.0,0.02106745]
[1748772980392,1.25627026,103990.0,103980.0,0.01207919]
[1748772980796,1.25627026,103990.0,103980.0,0.02106775]
[1748772981042,1.25627026,103990.0,103980.0,0.01207919]
[1748772981919,1.25619026,103990.0,103980.0,0.01207919]
[1748772984903,1.25619026,103990.0,103980.0,0.009002]
[1748772985335,2.01167026,103990.0,103980.0,0.009002]
[1748772985780,7.44634026,103990.0,103980.0,0.009002]
[1748772986427,7.44534026,103990.0,103980.0,0.009002]
[1748772986624,7.44734026,103990.0,103980.0,0.009002]
[1748772987096,7.44634026,103990.0,103980.0,0.009002]
[1748772987307,7.44934026,103990.0,103980.0,0.009002]
[1748772989058,6.95404026,103990.0,103980.0,0.009002]
[1748772997643,6.94078106,103990.0,103980.0,0.009002]
[1748772998012,6.64122106,103990.0,103980.0,0.009002]
[1748772998243,1.46536106,103990.0,103980.0,0.040302]
[1748772998465,1.55860106,103990.0,103980.0,0.040302]
[1748772998718,1.21860106,103990.0,103980.0,0.040302]
[1748772998905,1.51808106,103990.0,103980.0,0.040302]
[1748772999970,1.51808106,103990.0,103980.0,0.04929403]
[1748773000179,1.51808106,103990.0,103980.0,0.04929576]
[1748773001055,1.48920606,103990.0,103980.0,0.040302]
[1748773001405,1.48920606,103990.0,103980.0,0.04929576]
[1748773001619,1.48920606,103990.0,103980.0,0.04929575]
[1748773002243,1.48920606,103990.0,103980.0,0.04929744]
[1748773002408,1.48920606,103990.0,103980.0,0.040302]
[1748773002824,1.48920606,103990.0,103980.0,0.04929744]
[1748773003030,1.09648606,103990.0,103980.0,0.04929891]
[1748773003228,1.48916606,103990.0,103980.0,0.04929891]
[1748773003405,1.09387176,103990.0,103980.0,0.04929891]
[1748773003604,1.39331176,103990.0,103980.0,0.04929891]
[1748773004068,1.39331176,103990.0,103980.0,0.04929818]
[1748773004210,1.39331176,103990.0,103980.0,0.040302]
[1748773004615,1.39327176,103990.0,103980.0,0.040302]
[1748773005259,1.00063176,103990.0,103980.0,0.040302]
[1748773005459,1.09387176,103990.0,103980.0,0.040302]
[1748773005689,1.09387176,103990.0,103980.0,0.04929588]
[1748773006496,1.09387176,103990.0,103980.0,0.04929336]
[1748773006696,1.09387176,103990.0,103980.0,0.040302]
[1748773007015,1.08887176,103990.0,103980.0,0.040302]
[1748773007197,1.09087176,103990.0,103980.0,0.040302]
[1748773007564,1.09087176,103990.0,103980.0,0.04929336]
[1748773007751,0.67539176,103990.0,103980.0,0.06383421]
[1748773008536,0.67539176,103990.0,103980.0,0.0638311]
[1748773008737,0.67539176,103990.0,103980.0,0.06382886]
[1748773008965,0.67539176,103990.0,103980.0,0.06382718]
[1748773009220,0.67539176,103990.0,103980.0,0.06382722]
[1748773009749,0.67539176,103990.0,103980.0,0.05484285]
[1748773010773,0.67539176,103990.0,103980.0,0.06382719]
[1748773010985,0.67539176,103990.0,103980.0,0.05484285]
[1748773011381,0.67539176,103990.0,103980.0,0.06382719]
[1748773011589,0.67539176,103990.0,103980.0,0.05484285]
[1748773011832,0.67539176,103990.0,103980.0,0.06382719]
[1748773012825,0.67539176,103990.0,103980.0,0.05484285]
[1748773015586,0.67539176,103990.0,103980.0,0.06382509]
[1748773015793,0.67539176,103990.0,103980.0,0.05484285]
[1748773016200,0.58215176,103990.0,103980.0,0.063825]
[1748773016618,0.58215176,103990.0,103980.0,0.3616388]
[1748773016619,0.60138409,103990.0,103980.0,0.3616388]
[1748773016833,0.60138409,103990.0,103980.0,0.37125575]
[1748773017200,0.60138409,103990.0,103980.0,0.37125588]
[1748773017404,0.60138409,103990.0,103980.0,0.36227582]
[1748773017611,0.60138409,103990.0,103980.0,0.38087262]
[1748773018408,0.60138409,103990.0,103980.0,0.37125585]
[1748773018571,0.60138409,103990.0,103980.0,0.38087271]
[1748773018983,0.60138409,103990.0,103980.0,0.37189268]
[1748773019187,0.60138409,103990.0,103980.0,0.39048435]
[1748773020018,0.60138409,103990.0,103980.0,0.40010102]
[1748773020266,0.60138409,103990.0,103980.0,0.40009864]
[1748773020470,0.60138409,103990.0,103980.0,0.39112612]
[1748773020674,0.38982558,103990.0,103980.0,1.0393344]
[1748773020885,0.39944124,103990.0,103980.0,1.03933203]
[1748773021056,0.01477124,103990.0,103980.0,1.03933185]
[1748773021467,0.01377124,103990.0,103980.0,1.03036566]
[1748773021665,0.01377124,103990.0,103980.0,1.03933133]
[1748773021868,0.01377124,103990.0,103980.0,1.04033133]
[1748773022035,0.02238708,103990.0,103980.0,1.04033133]
[1748773022237,0.02238708,103990.0,103980.0,1.03933133]
[1748773022444,0.02338699,103990.0,103980.0,1.04332752]
[1748773022645,0.02338699,103990.0,103980.0,1.04332784]
[1748773022971,0.02338699,103990.0,103980.0,1.04432781]
[1748773023383,0.02338699,103990.0,103980.0,1.04332781]
[1748773023559,0.03300283,103990.0,103980.0,1.04332781]
[1748773023764,0.03400283,103990.0,103980.0,1.04732781]
[1748773024136,0.03400283,103990.0,103980.0,1.03836566]
[1748773024339,0.03400283,103990.0,103980.0,1.0473275]
[1748773024763,0.03400283,103990.0,103980.0,1.04732677]
[1748773024967,0.04361886,103990.0,103980.0,1.04732656]
[1748773025384,0.04361886,103990.0,103980.0,1.04724572]
[1748773025772,0.05323507,103990.0,103980.0,0.74808572]
[1748773025977,0.216714,103990.0,103980.0,0.50765787]
[1748773026187,0.31065415,103990.0,103980.0,0.49311808]
[1748773026391,0.31065415,103990.0,103980.0,0.49312124]
[1748773026594,0.31065415,103990.0,103980.0,0.49869715]
[1748773026794,0.31065415,103990.0,103980.0,0.50766223]
[1748773027029,0.31065415,103990.0,103980.0,0.16766223]
[1748773027234,0.31065415,103990.0,103980.0,0.05726708]
[1748773027437,0.31065415,103990.0,103980.0,0.05726847]
[1748773027640,0.31065415,103990.0,103980.0,0.07180932]
[1748773028052,0.30965415,103990.0,103980.0,0.06780932]
[1748773028283,0.30965415,103990.0,103980.0,0.06680882]
[1748773028459,0.30965415,103990.0,103980.0,0.05784285]
[1748773028691,0.30965415,103990.0,103980.0,0.06084285]
[1748773029324,0.30965415,103990.0,103980.0,0.06980863]